[Event "*** Titled Tuesday Blitz"]
[Site "Chess.com"]
[Date "2021.02.16"]
[Round "9"]
[White "marianokar"]
[Black "PotapovaM"]
[Result "1-0"]
[WhiteElo "2464"]
[BlackElo "2576"]
[TimeControl "180+1"]
[EndTime "11:49:14 PST"]
[Termination "marianokar won by checkmate"]

1. e4 {[%clk 0:03:00.9]} 1... c5 {[%clk 0:02:57.1]} 2. Nf3 {[%clk 0:02:59.7]}
2... d6 {[%clk 0:02:51.3]} 3. Bc4 {[%clk 0:03:00.1]} 3... Nf6 {[%clk 0:02:47.3]}
4. d3 {[%clk 0:03:00.1]} 4... g6 {[%clk 0:02:46.6]} 5. c3 {[%clk 0:02:59.3]}
5... Bg7 {[%clk 0:02:47.2]} 6. Bb3 {[%clk 0:02:59.4]} 6... O-O {[%clk
0:02:47.8]} 7. O-O {[%clk 0:02:59.8]} 7... Nc6 {[%clk 0:02:48.4]} 8. Nbd2 {[%clk
0:02:59.5]} 8... a6 {[%clk 0:02:47.1]} 9. Re1 {[%clk 0:02:57.3]} 9... b5 {[%clk
0:02:46.8]} 10. Nf1 {[%clk 0:02:54.7]} 10... e6 {[%clk 0:02:34.3]} 11. d4 {[%clk
0:02:53.2]} 11... cxd4 {[%clk 0:02:32.2]} 12. cxd4 {[%clk 0:02:54.1]} 12... Na5
{[%clk 0:02:32.9]} 13. Bc2 {[%clk 0:02:53.7]} 13... Bb7 {[%clk 0:02:32.4]} 14.
Ng3 {[%clk 0:02:52.8]} 14... Rc8 {[%clk 0:02:31.4]} 15. Bd3 {[%clk 0:02:48.4]}
15... Nd7 {[%clk 0:02:18.4]} 16. b3 {[%clk 0:02:39]} 16... Nc6 {[%clk
0:02:16.8]} 17. Bb2 {[%clk 0:02:36.4]} 17... Nb4 {[%clk 0:02:02.1]} 18. Bb1
{[%clk 0:02:35.2]} 18... Qc7 {[%clk 0:02:02.8]} 19. Re2 {[%clk 0:02:33.1]} 19...
a5 {[%clk 0:01:57.6]} 20. a3 {[%clk 0:02:32]} 20... Nc6 {[%clk 0:01:57.5]} 21.
Bd3 {[%clk 0:02:31.7]} 21... b4 {[%clk 0:01:56.2]} 22. a4 {[%clk 0:02:27.7]}
22... Qb6 {[%clk 0:01:34.5]} 23. Bb5 {[%clk 0:02:26.5]} 23... Nf6 {[%clk
0:01:21.6]} 24. Rc1 {[%clk 0:02:12.5]} 24... h5 {[%clk 0:01:20.8]} 25. h3 {[%clk
0:02:09.7]} 25... h4 {[%clk 0:01:20.6]} 26. Nxh4 {[%clk 0:02:06.8]} 26... Na7
{[%clk 0:01:17.1]} 27. Rxc8 {[%clk 0:01:56.3]} 27... Rxc8 {[%clk 0:01:18]} 28.
Bd3 {[%clk 0:01:55.5]} 28... Nd7 {[%clk 0:01:07.8]} 29. Nf3 {[%clk 0:01:54.4]}
29... Nc6 {[%clk 0:01:06.9]} 30. Bb5 {[%clk 0:01:54.1]} 30... Nf6 {[%clk
0:01:01.7]} 31. Rc2 {[%clk 0:01:50.8]} 31... Rd8 {[%clk 0:00:57.1]} 32. Qc1
{[%clk 0:01:28.2]} 32... Na7 {[%clk 0:00:57]} 33. Bd3 {[%clk 0:01:27.8]} 33...
Ne8 {[%clk 0:00:55.9]} 34. Qe3 {[%clk 0:01:21.7]} 34... Nc6 {[%clk 0:00:51.6]}
35. h4 {[%clk 0:01:10.4]} 35... Nf6 {[%clk 0:00:50.3]} 36. Qg5 {[%clk
0:01:07.1]} 36... Nh7 {[%clk 0:00:49.6]} 37. Qb5 {[%clk 0:01:03.4]} 37... Qxb5
{[%clk 0:00:27.3]} 38. axb5 {[%clk 0:00:56.1]} 38... Nb8 {[%clk 0:00:27.3]} 39.
Rc7 {[%clk 0:00:56.2]} 39... Rd7 {[%clk 0:00:26.3]} 40. b6 {[%clk 0:00:48.7]}
40... Bf6 {[%clk 0:00:25.7]} 41. Bb5 {[%clk 0:00:45.7]} 41... Re7 {[%clk
0:00:18.6]} 42. e5 {[%clk 0:00:40.8]} 42... dxe5 {[%clk 0:00:06.9]} 43. dxe5
{[%clk 0:00:41.7]} 43... Rxc7 {[%clk 0:00:01.6]} 44. bxc7 {[%clk 0:00:41.2]}
44... Na6 {[%clk 0:00:02.3]} 45. Bxa6 {[%clk 0:00:40.4]} 45... Bxa6 {[%clk
0:00:02.3]} 46. exf6 {[%clk 0:00:41]} 46... Nf8 {[%clk 0:00:02.8]} 47. Ne5
{[%clk 0:00:40.2]} 47... Bb7 {[%clk 0:00:02.7]} 48. Bd4 {[%clk 0:00:38.5]} 48...
a4 {[%clk 0:00:02.5]} 49. bxa4 {[%clk 0:00:38.3]} 49... b3 {[%clk 0:00:03.4]}
50. Ne2 {[%clk 0:00:36.4]} 50... Bc8 {[%clk 0:00:02.8]} 51. Bb2 {[%clk 0:00:35]}
51... Nh7 {[%clk 0:00:02.9]} 52. Nc6 {[%clk 0:00:33.7]} 52... Kf8 {[%clk
0:00:03.2]} 53. Ne7 {[%clk 0:00:33.7]} 53... Bd7 {[%clk 0:00:03.9]} 54. c8=Q+
{[%clk 0:00:33.5]} 54... Bxc8 {[%clk 0:00:04.4]} 55. Nxc8 {[%clk 0:00:34.4]}
55... g5 {[%clk 0:00:04.7]} 56. hxg5 {[%clk 0:00:33.5]} 56... Nxg5 {[%clk
0:00:05.6]} 57. a5 {[%clk 0:00:33.2]} 57... Ne4 {[%clk 0:00:06.3]} 58. a6 {[%clk
0:00:33.3]} 58... Kg8 {[%clk 0:00:03.5]} 59. a7 {[%clk 0:00:33.4]} 59... Kh7
{[%clk 0:00:04.4]} 60. a8=Q {[%clk 0:00:33.5]} 60... Nd2 {[%clk 0:00:04.4]} 61.
Qb7 {[%clk 0:00:32.4]} 61... Nc4 {[%clk 0:00:04.5]} 62. Qxb3 {[%clk 0:00:32.3]}
62... e5 {[%clk 0:00:03.5]} 63. Qxc4 {[%clk 0:00:31.9]} 63... e4 {[%clk
0:00:04]} 64. Qxf7+ {[%clk 0:00:31.7]} 64... Kh6 {[%clk 0:00:04.9]} 65. Qg7+
{[%clk 0:00:31.9]} 65... Kh5 {[%clk 0:00:05.6]} 66. Nf4+ {[%clk 0:00:31.4]}
66... Kh4 {[%clk 0:00:06.5]} 67. Qg3# {[%clk 0:00:31.1]} 1-0

[Event "*** Titled Tuesday Blitz"]
[Site "Chess.com"]
[Date "2021.02.16"]
[Round "9"]
[White "GLeruste"]
[Black "kamilianin235"]
[Result "1-0"]
[WhiteElo "2459"]
[BlackElo "2198"]
[TimeControl "180+1"]
[EndTime "11:49:17 PST"]
[Termination "GLeruste won on time"]

1. d4 {[%clk 0:03:00.9]} 1... d5 {[%clk 0:02:58.8]} 2. Nc3 {[%clk 0:03:00.8]}
2... Nf6 {[%clk 0:02:56.9]} 3. Bf4 {[%clk 0:03:01.1]} 3... Bf5 {[%clk
0:02:55.7]} 4. e3 {[%clk 0:03:00.6]} 4... e6 {[%clk 0:02:55.8]} 5. Nf3 {[%clk
0:03:00.7]} 5... a6 {[%clk 0:02:54.2]} 6. Ne5 {[%clk 0:02:58.4]} 6... h5 {[%clk
0:02:52.1]} 7. Bd3 {[%clk 0:02:52.6]} 7... Bxd3 {[%clk 0:02:44.7]} 8. Qxd3
{[%clk 0:02:52.3]} 8... c5 {[%clk 0:02:43]} 9. O-O {[%clk 0:02:38.9]} 9... Nc6
{[%clk 0:02:38.6]} 10. Nxc6 {[%clk 0:02:27]} 10... bxc6 {[%clk 0:02:36.7]} 11.
dxc5 {[%clk 0:02:22]} 11... Bxc5 {[%clk 0:02:35.2]} 12. Rad1 {[%clk 0:02:15.7]}
12... O-O {[%clk 0:02:27.6]} 13. Bg5 {[%clk 0:02:13.3]} 13... Be7 {[%clk
0:02:26]} 14. Qe2 {[%clk 0:02:11.3]} 14... Rb8 {[%clk 0:02:20.3]} 15. b3 {[%clk
0:02:06]} 15... Qa5 {[%clk 0:02:13.6]} 16. Na4 {[%clk 0:02:01.7]} 16... g6
{[%clk 0:02:03.8]} 17. c4 {[%clk 0:01:58.7]} 17... dxc4 {[%clk 0:01:57.8]} 18.
Qxc4 {[%clk 0:01:53.2]} 18... Qxg5 {[%clk 0:01:56.2]} 19. Qxc6 {[%clk
0:01:52.7]} 19... Qb5 {[%clk 0:01:53.3]} 20. Qf3 {[%clk 0:01:51.6]} 20... Qb7
{[%clk 0:01:49.9]} 21. Qe2 {[%clk 0:01:51.4]} 21... Rfd8 {[%clk 0:01:47.3]} 22.
h3 {[%clk 0:01:51.1]} 22... Rbc8 {[%clk 0:01:44]} 23. Rxd8+ {[%clk 0:01:47.5]}
23... Rxd8 {[%clk 0:01:40.6]} 24. Rc1 {[%clk 0:01:47.5]} 24... Rc8 {[%clk
0:01:36.2]} 25. Rd1 {[%clk 0:01:46.8]} 25... Qc6 {[%clk 0:01:35]} 26. g3 {[%clk
0:01:30.3]} 26... Rd8 {[%clk 0:01:25.1]} 27. Rxd8+ {[%clk 0:01:25.6]} 27... Bxd8
{[%clk 0:01:26]} 28. Qd3 {[%clk 0:01:24.5]} 28... Be7 {[%clk 0:01:23.6]} 29. Qe2
{[%clk 0:01:23.8]} 29... Qb5 {[%clk 0:01:18.9]} 30. Qc2 {[%clk 0:01:23.1]} 30...
Kg7 {[%clk 0:01:17]} 31. Qb2 {[%clk 0:01:16.4]} 31... Bd6 {[%clk 0:01:11.2]} 32.
Qd2 {[%clk 0:01:15.7]} 32... Be5 {[%clk 0:01:05.9]} 33. Qc2 {[%clk 0:01:16]}
33... Qd5 {[%clk 0:01:00.4]} 34. Nb6 {[%clk 0:01:11.2]} 34... Qe4 {[%clk
0:00:57.7]} 35. Qe2 {[%clk 0:01:09.8]} 35... h4 {[%clk 0:00:51]} 36. g4 {[%clk
0:01:04.2]} 36... Qb1+ {[%clk 0:00:40.8]} 37. Kg2 {[%clk 0:01:03.1]} 37... Qe4+
{[%clk 0:00:40.3]} 38. Kg1 {[%clk 0:01:02.7]} 38... Qb7 {[%clk 0:00:40.2]} 39.
Nc4 {[%clk 0:01:02.2]} 39... Bc7 {[%clk 0:00:40.1]} 40. Qb2 {[%clk 0:01:01.2]}
40... Qb5 {[%clk 0:00:38.8]} 41. Qc2 {[%clk 0:00:58.9]} 41... Qd5 {[%clk
0:00:34.1]} 42. Qe2 {[%clk 0:00:58.3]} 42... Ne4 {[%clk 0:00:29.6]} 43. Qc2
{[%clk 0:00:57.6]} 43... Nd6 {[%clk 0:00:23.1]} 44. Nd2 {[%clk 0:00:56.3]} 44...
Bb8 {[%clk 0:00:20.3]} 45. Qb2+ {[%clk 0:00:55.7]} 45... Kh7 {[%clk 0:00:19.5]}
46. Qc2 {[%clk 0:00:55.8]} 46... Nb5 {[%clk 0:00:19.1]} 47. Nc4 {[%clk
0:00:55.4]} 47... Qd7 {[%clk 0:00:17]} 48. a4 {[%clk 0:00:52.9]} 48... Nd6
{[%clk 0:00:14.3]} 49. Ne5 {[%clk 0:00:53.2]} 49... Qc7 {[%clk 0:00:12.5]} 50.
Qb2 {[%clk 0:00:51.6]} 50... Ne4 {[%clk 0:00:09.5]} 51. Nf3 {[%clk 0:00:51.7]}
51... Qc3 {[%clk 0:00:07.5]} 52. Ng5+ {[%clk 0:00:50.6]} 52... Kg7 {[%clk
0:00:05.1]} 53. Qxc3+ {[%clk 0:00:50.3]} 53... Nxc3 {[%clk 0:00:06]} 54. Nf3
{[%clk 0:00:50.8]} 54... Nd5 {[%clk 0:00:06]} 55. Nxh4 {[%clk 0:00:50.1]} 55...
Kf6 {[%clk 0:00:05.8]} 56. Nf3 {[%clk 0:00:49.8]} 56... Ke7 {[%clk 0:00:06.3]}
57. h4 {[%clk 0:00:50]} 57... Kd6 {[%clk 0:00:06.6]} 58. h5 {[%clk 0:00:50.4]}
58... gxh5 {[%clk 0:00:06.5]} 59. gxh5 {[%clk 0:00:51.3]} 59... Nf6 {[%clk
0:00:06.8]} 60. h6 {[%clk 0:00:51.3]} 60... Nh7 {[%clk 0:00:06.2]} 61. Nd2
{[%clk 0:00:50.2]} 61... Kc5 {[%clk 0:00:05.5]} 62. f4 {[%clk 0:00:47.3]} 62...
Kb4 {[%clk 0:00:05.1]} 63. Ne4 {[%clk 0:00:47.7]} 63... Kxb3 {[%clk 0:00:04.7]}
64. Nc5+ {[%clk 0:00:46.9]} 64... Kc3 {[%clk 0:00:03.2]} 65. Nd7 {[%clk
0:00:44.1]} 65... Ba7 {[%clk 0:00:02.4]} 66. Kf2 {[%clk 0:00:43.9]} 66... Kd3
{[%clk 0:00:02.4]} 67. Kf3 {[%clk 0:00:44.2]} 67... Bxe3 {[%clk 0:00:01.3]} 68.
Ne5+ {[%clk 0:00:44.5]} 68... Kd2 {[%clk 0:00:01.8]} 69. Nxf7 {[%clk 0:00:45]}
69... Kc3 {[%clk 0:00:02.6]} 70. Nd8 {[%clk 0:00:43.6]} 70... Kb4 {[%clk
0:00:02.6]} 71. Nxe6 {[%clk 0:00:43.5]} 71... Bc5 {[%clk 0:00:02.7]} 72. f5
{[%clk 0:00:43]} 72... Be7 {[%clk 0:00:02]} 73. Nc7 {[%clk 0:00:39.8]} 1-0

[Event "*** Titled Tuesday Blitz"]
[Site "Chess.com"]
[Date "2021.02.16"]
[Round "9"]
[White "Sergey85Rodchenkov"]
[Black "olksuna"]
[Result "1-0"]
[WhiteElo "2518"]
[BlackElo "2677"]
[TimeControl "180+1"]
[EndTime "11:49:20 PST"]
[Termination "Sergey85Rodchenkov won by checkmate"]

1. e4 {[%clk 0:03:00.9]} 1... c5 {[%clk 0:02:59.9]} 2. Nf3 {[%clk 0:03:00.8]}
2... e6 {[%clk 0:03:00.3]} 3. d3 {[%clk 0:03:00.3]} 3... Nc6 {[%clk 0:03:00]} 4.
g3 {[%clk 0:03:00.3]} 4... d5 {[%clk 0:02:59.8]} 5. Nbd2 {[%clk 0:02:59.4]} 5...
Nf6 {[%clk 0:02:59.8]} 6. Bg2 {[%clk 0:02:59.4]} 6... Be7 {[%clk 0:03:00.2]} 7.
O-O {[%clk 0:02:58.9]} 7... O-O {[%clk 0:03:00.4]} 8. Re1 {[%clk 0:02:59]} 8...
b5 {[%clk 0:02:59.7]} 9. a3 {[%clk 0:02:54.1]} 9... Bb7 {[%clk 0:02:57.5]} 10.
h4 {[%clk 0:02:53.8]} 10... a5 {[%clk 0:02:50.4]} 11. e5 {[%clk 0:02:53.7]}
11... Nd7 {[%clk 0:02:50.2]} 12. Nf1 {[%clk 0:02:54.1]} 12... Qc7 {[%clk
0:02:50]} 13. Bf4 {[%clk 0:02:53.6]} 13... Rfc8 {[%clk 0:02:50.1]} 14. N1h2
{[%clk 0:02:53.6]} 14... Qd8 {[%clk 0:02:50]} 15. Ng4 {[%clk 0:02:53.3]} 15...
a4 {[%clk 0:02:34.4]} 16. h5 {[%clk 0:02:52.9]} 16... h6 {[%clk 0:02:34.5]} 17.
Qd2 {[%clk 0:02:42.5]} 17... Bf8 {[%clk 0:02:34.2]} 18. c3 {[%clk 0:02:26]}
18... d4 {[%clk 0:02:19.3]} 19. Rac1 {[%clk 0:02:18.6]} 19... dxc3 {[%clk
0:02:16.3]} 20. Rxc3 {[%clk 0:02:12.8]} 20... Nb6 {[%clk 0:02:06.6]} 21. Bxh6
{[%clk 0:02:00.6]} 21... gxh6 {[%clk 0:02:01.2]} 22. Nxh6+ {[%clk 0:02:00.7]}
22... Bxh6 {[%clk 0:01:59.9]} 23. Qxh6 {[%clk 0:02:00]} 23... Qf8 {[%clk
0:02:00.6]} 24. Qf4 {[%clk 0:01:59.6]} 24... Nd5 {[%clk 0:01:58.9]} 25. Qg5+
{[%clk 0:01:58.3]} 25... Qg7 {[%clk 0:01:56.8]} 26. Rxc5 {[%clk 0:01:56.6]}
26... Qxg5 {[%clk 0:01:45.9]} 27. Nxg5 {[%clk 0:01:56.6]} 27... Nd4 {[%clk
0:01:43.1]} 28. Rxc8+ {[%clk 0:01:39]} 28... Rxc8 {[%clk 0:01:44]} 29. h6 {[%clk
0:01:31.4]} 29... Nf5 {[%clk 0:01:13.5]} 30. h7+ {[%clk 0:01:26.6]} 30... Kg7
{[%clk 0:01:13.2]} 31. Be4 {[%clk 0:01:27.5]} 31... Ba8 {[%clk 0:00:52.5]} 32.
g4 {[%clk 0:01:09.1]} 32... Nfe7 {[%clk 0:00:42.6]} 33. Kh2 {[%clk 0:01:02.8]}
33... Nf4 {[%clk 0:00:32.7]} 34. Kg3 {[%clk 0:01:00.2]} 34... Bxe4 {[%clk
0:00:31.1]} 35. dxe4 {[%clk 0:00:55.6]} 35... Nd3 {[%clk 0:00:27.4]} 36. Rh1
{[%clk 0:00:43.6]} 36... Ng6 {[%clk 0:00:24]} 37. Rd1 {[%clk 0:00:33.2]} 37...
Ndxe5 {[%clk 0:00:18.3]} 38. f4 {[%clk 0:00:33.5]} 38... Nc6 {[%clk 0:00:13.3]}
39. Rd7 {[%clk 0:00:32]} 39... Nh8 {[%clk 0:00:09.2]} 40. e5 {[%clk 0:00:22.3]}
40... Kg6 {[%clk 0:00:09.4]} 41. Kh4 {[%clk 0:00:18.9]} 41... Rd8 {[%clk
0:00:08.5]} 42. Rc7 {[%clk 0:00:18.4]} 42... Nd4 {[%clk 0:00:08.8]} 43. Ne4
{[%clk 0:00:16.7]} 43... Kxh7 {[%clk 0:00:07.6]} 44. Nf6+ {[%clk 0:00:15.3]}
44... Kg6 {[%clk 0:00:07.3]} 45. Kg3 {[%clk 0:00:14.2]} 45... Ne2+ {[%clk
0:00:06.5]} 46. Kf3 {[%clk 0:00:14.2]} 46... Nd4+ {[%clk 0:00:07.4]} 47. Ke4
{[%clk 0:00:14.4]} 47... Nb3 {[%clk 0:00:06.2]} 48. f5+ {[%clk 0:00:09.1]} 48...
exf5+ {[%clk 0:00:06.5]} 49. gxf5+ {[%clk 0:00:09.4]} 49... Kg7 {[%clk
0:00:06.9]} 50. Nd5 {[%clk 0:00:09.3]} 50... Nd2+ {[%clk 0:00:04.7]} 51. Kd4
{[%clk 0:00:08.3]} 51... Nf3+ {[%clk 0:00:05.3]} 52. Ke4 {[%clk 0:00:08.4]}
52... Ng5+ {[%clk 0:00:05.6]} 53. Kd4 {[%clk 0:00:07.4]} 53... Kf8 {[%clk
0:00:05.9]} 54. Kc5 {[%clk 0:00:05.3]} 54... Ne4+ {[%clk 0:00:05.6]} 55. Kc6
{[%clk 0:00:05.6]} 55... Nd2 {[%clk 0:00:03.5]} 56. e6 {[%clk 0:00:03.3]} 56...
fxe6 {[%clk 0:00:03.9]} 57. fxe6 {[%clk 0:00:03.5]} 57... Ng6 {[%clk 0:00:04.5]}
58. Rf7+ {[%clk 0:00:02]} 58... Kg8 {[%clk 0:00:02.9]} 59. Nf6+ {[%clk
0:00:02.2]} 59... Kh8 {[%clk 0:00:03.3]} 60. Rh7# {[%clk 0:00:02.4]} 1-0

[Event "*** Titled Tuesday Blitz"]
[Site "Chess.com"]
[Date "2021.02.16"]
[Round "9"]
[White "Zq1"]
[Black "Kurkusha"]
[Result "1-0"]
[WhiteElo "2501"]
[BlackElo "2352"]
[TimeControl "180+1"]
[EndTime "11:49:25 PST"]
[Termination "Zq1 won by resignation"]

1. d4 {[%clk 0:03:00.9]} 1... d5 {[%clk 0:02:58]} 2. c4 {[%clk 0:03:00.8]} 2...
e6 {[%clk 0:02:57.3]} 3. Nc3 {[%clk 0:03:00.3]} 3... Nf6 {[%clk 0:02:57.5]} 4.
Nf3 {[%clk 0:02:58.9]} 4... dxc4 {[%clk 0:02:57.5]} 5. Qa4+ {[%clk 0:02:49.9]}
5... c6 {[%clk 0:02:52.2]} 6. Qxc4 {[%clk 0:02:48.5]} 6... b5 {[%clk 0:02:52.4]}
7. Qd3 {[%clk 0:02:48.1]} 7... Bb7 {[%clk 0:02:52.4]} 8. Bg5 {[%clk 0:02:46.6]}
8... Be7 {[%clk 0:02:51.7]} 9. e3 {[%clk 0:02:44.9]} 9... O-O {[%clk 0:02:51.1]}
10. Bxf6 {[%clk 0:02:43]} 10... Bxf6 {[%clk 0:02:50.8]} 11. Ne4 {[%clk 0:02:43]}
11... Nd7 {[%clk 0:02:42.9]} 12. Be2 {[%clk 0:02:37.8]} 12... Qa5+ {[%clk
0:02:33]} 13. Nfd2 {[%clk 0:02:35]} 13... Rad8 {[%clk 0:02:00.9]} 14. O-O {[%clk
0:02:07.1]} 14... c5 {[%clk 0:01:34.9]} 15. Qxb5 {[%clk 0:01:41.5]} 15... Qxb5
{[%clk 0:01:33.5]} 16. Bxb5 {[%clk 0:01:37.4]} 16... cxd4 {[%clk 0:01:30.3]} 17.
Nxf6+ {[%clk 0:01:30.9]} 17... Nxf6 {[%clk 0:01:29.9]} 18. exd4 {[%clk
0:01:30.5]} 18... Rxd4 {[%clk 0:01:30.8]} 19. Nb3 {[%clk 0:01:26.9]} 19... Rd5
{[%clk 0:01:20.6]} 20. Bc4 {[%clk 0:01:25.6]} 20... Rd7 {[%clk 0:01:18.4]} 21.
Rfd1 {[%clk 0:01:21.1]} 21... Rfd8 {[%clk 0:01:15]} 22. Rxd7 {[%clk 0:01:20.6]}
22... Rxd7 {[%clk 0:01:15.5]} 23. f3 {[%clk 0:01:20.6]} 23... Kf8 {[%clk
0:01:07.7]} 24. Nc5 {[%clk 0:01:16.5]} 24... Rc7 {[%clk 0:01:07.5]} 25. b4
{[%clk 0:01:15.6]} 25... Bd5 {[%clk 0:01:05.7]} 26. Bd3 {[%clk 0:01:10.6]} 26...
Nd7 {[%clk 0:00:56.3]} 27. Nxd7+ {[%clk 0:00:50]} 27... Rxd7 {[%clk 0:00:57.2]}
28. Be2 {[%clk 0:00:46.5]} 28... Bb7 {[%clk 0:00:53]} 29. Rd1 {[%clk 0:00:42]}
29... Rc7 {[%clk 0:00:51]} 30. Rd2 {[%clk 0:00:41.4]} 30... Ke7 {[%clk
0:00:48.8]} 31. Kf2 {[%clk 0:00:40.7]} 31... Rc3 {[%clk 0:00:49]} 32. a4 {[%clk
0:00:35.6]} 32... Rb3 {[%clk 0:00:42.6]} 33. b5 {[%clk 0:00:33.4]} 33... Ra3
{[%clk 0:00:41.1]} 34. Rd4 {[%clk 0:00:32.5]} 34... Bd5 {[%clk 0:00:40.2]} 35.
Bd1 {[%clk 0:00:22.5]} 35... h5 {[%clk 0:00:39]} 36. h4 {[%clk 0:00:21.6]} 36...
g6 {[%clk 0:00:39]} 37. Rb4 {[%clk 0:00:19.3]} 37... Kd6 {[%clk 0:00:37]} 38. g4
{[%clk 0:00:15.9]} 38... Ra2+ {[%clk 0:00:33.3]} 39. Kg3 {[%clk 0:00:13.6]}
39... Kc5 {[%clk 0:00:32.9]} 40. Rb1 {[%clk 0:00:11.5]} 40... Rd2 {[%clk
0:00:22.9]} 41. gxh5 {[%clk 0:00:10.1]} 41... gxh5 {[%clk 0:00:22.9]} 42. Kf4
{[%clk 0:00:10.4]} 42... Rd3 {[%clk 0:00:17.8]} 43. a5 {[%clk 0:00:08.1]} 43...
f6 {[%clk 0:00:15.9]} 44. b6 {[%clk 0:00:06.9]} 44... axb6 {[%clk 0:00:16.1]}
45. axb6 {[%clk 0:00:06.8]} 45... Bb7 {[%clk 0:00:16.7]} 46. Be2 {[%clk
0:00:06.5]} 46... Rd4+ {[%clk 0:00:16.1]} 47. Kg3 {[%clk 0:00:05.9]} 47... Kc6
{[%clk 0:00:16.4]} 48. Rb3 {[%clk 0:00:04.7]} 48... Kd7 {[%clk 0:00:14.4]} 49.
Bb5+ {[%clk 0:00:04.5]} 49... Kc8 {[%clk 0:00:14.4]} 50. Rc3+ {[%clk 0:00:04.1]}
50... Kb8 {[%clk 0:00:14.5]} 51. Rd3 {[%clk 0:00:04.3]} 51... Rxd3 {[%clk
0:00:13.2]} 52. Bxd3 {[%clk 0:00:04.4]} 52... Bd5 {[%clk 0:00:13.8]} 53. Bg6
{[%clk 0:00:04.7]} 53... e5 {[%clk 0:00:09.7]} 54. Bxh5 {[%clk 0:00:05]} 54...
e4 {[%clk 0:00:08.1]} 55. f4 {[%clk 0:00:04.1]} 55... e3 {[%clk 0:00:07.8]} 56.
Be2 {[%clk 0:00:03.5]} 56... Be4 {[%clk 0:00:07.8]} 57. Kg4 {[%clk 0:00:03.1]}
57... Kb7 {[%clk 0:00:07.4]} 58. f5 {[%clk 0:00:03.4]} 58... Kxb6 {[%clk
0:00:07.8]} 59. h5 {[%clk 0:00:03.8]} 59... Bd5 {[%clk 0:00:08.2]} 60. h6 {[%clk
0:00:04]} 60... Bg8 {[%clk 0:00:08.9]} 61. Kf4 {[%clk 0:00:04.4]} 61... Kc5
{[%clk 0:00:09.3]} 62. Kxe3 {[%clk 0:00:04.3]} 62... Kd5 {[%clk 0:00:09.5]} 63.
Kf4 {[%clk 0:00:04.8]} 63... Kd4 {[%clk 0:00:09.7]} 64. Bh5 {[%clk 0:00:05.3]}
64... Kd5 {[%clk 0:00:03.5]} 65. Bg6 {[%clk 0:00:05.8]} 65... Kd6 {[%clk
0:00:04]} 66. h7 {[%clk 0:00:06]} 66... Bxh7 {[%clk 0:00:04.4]} 67. Bxh7 {[%clk
0:00:06.5]} 1-0

[Event "*** Titled Tuesday Blitz"]
[Site "Chess.com"]
[Date "2021.02.16"]
[Round "9"]
[White "nrvisakh"]
[Black "azikom"]
[Result "0-1"]
[WhiteElo "2776"]
[BlackElo "2655"]
[TimeControl "180+1"]
[EndTime "11:49:34 PST"]
[Termination "azikom won by resignation"]

1. e4 {[%clk 0:02:58.4]} 1... e5 {[%clk 0:02:58]} 2. Nf3 {[%clk 0:02:58.5]} 2...
Nc6 {[%clk 0:02:58.3]} 3. Nc3 {[%clk 0:02:52.1]} 3... Nf6 {[%clk 0:02:56.3]} 4.
Bb5 {[%clk 0:02:51.5]} 4... Bd6 {[%clk 0:02:54.7]} 5. O-O {[%clk 0:02:50.5]}
5... a6 {[%clk 0:02:51.6]} 6. Bc4 {[%clk 0:02:43.4]} 6... O-O {[%clk 0:02:49.4]}
7. a3 {[%clk 0:02:41.8]} 7... b5 {[%clk 0:02:44.6]} 8. Ba2 {[%clk 0:02:40.7]}
8... h6 {[%clk 0:02:44.2]} 9. d3 {[%clk 0:02:39.9]} 9... Re8 {[%clk 0:02:43.9]}
10. Nh4 {[%clk 0:02:34.6]} 10... Bf8 {[%clk 0:02:39.7]} 11. Nf5 {[%clk
0:02:27.5]} 11... d6 {[%clk 0:02:35.9]} 12. Ne3 {[%clk 0:02:23.2]} 12... Nd4
{[%clk 0:02:30.2]} 13. Ne2 {[%clk 0:02:22.3]} 13... Nxe2+ {[%clk 0:02:28.8]} 14.
Qxe2 {[%clk 0:02:21.8]} 14... Be6 {[%clk 0:02:29.3]} 15. Bxe6 {[%clk 0:02:19.7]}
15... Rxe6 {[%clk 0:02:28.5]} 16. a4 {[%clk 0:02:19.8]} 16... c6 {[%clk
0:02:26.9]} 17. Bd2 {[%clk 0:02:19.2]} 17... Re8 {[%clk 0:02:19.1]} 18. Qf3
{[%clk 0:02:12.5]} 18... Qd7 {[%clk 0:02:04.9]} 19. Nf5 {[%clk 0:02:10.8]} 19...
Qe6 {[%clk 0:02:04.4]} 20. Qg3 {[%clk 0:02:02.5]} 20... Kh7 {[%clk 0:02:04]} 21.
f4 {[%clk 0:01:59.6]} 21... Nh5 {[%clk 0:01:59.9]} 22. Qf3 {[%clk 0:01:59.7]}
22... Nxf4 {[%clk 0:01:59.6]} 23. Bxf4 {[%clk 0:01:58.6]} 23... exf4 {[%clk
0:01:59.5]} 24. Qxf4 {[%clk 0:01:59.5]} 24... d5 {[%clk 0:01:52.3]} 25. exd5
{[%clk 0:01:58.3]} 25... Qxd5 {[%clk 0:01:43.7]} 26. Ng3 {[%clk 0:01:56.8]}
26... f6 {[%clk 0:01:35.9]} 27. Ne4 {[%clk 0:01:56.6]} 27... Qd4+ {[%clk
0:01:21.9]} 28. Kh1 {[%clk 0:01:37.3]} 28... Qxb2 {[%clk 0:01:19.5]} 29. Qc7
{[%clk 0:01:32.3]} 29... Rec8 {[%clk 0:01:08.9]} 30. Qd7 {[%clk 0:01:27.1]}
30... Kh8 {[%clk 0:01:03.4]} 31. axb5 {[%clk 0:01:26.4]} 31... cxb5 {[%clk
0:01:01.5]} 32. Rxa6 {[%clk 0:01:24.5]} 32... Qxc2 {[%clk 0:00:56.5]} 33. Rxa8
{[%clk 0:01:16.7]} 33... Rxa8 {[%clk 0:00:55.8]} 34. Qxb5 {[%clk 0:01:17]} 34...
Rd8 {[%clk 0:00:56.3]} 35. Qc4 {[%clk 0:01:01]} 35... Qxd3 {[%clk 0:00:55.4]}
36. Qxd3 {[%clk 0:01:01]} 36... Rxd3 {[%clk 0:00:55.3]} 37. g3 {[%clk
0:00:59.1]} 37... Kh7 {[%clk 0:00:53.8]} 38. Kg2 {[%clk 0:00:58.8]} 38... Rd4
{[%clk 0:00:53.8]} 39. Re1 {[%clk 0:00:58.1]} 39... Ra4 {[%clk 0:00:53.6]} 40.
Re2 {[%clk 0:00:58.1]} 40... Ra1 {[%clk 0:00:53.4]} 41. Nf2 {[%clk 0:00:57.1]}
41... Ra3 {[%clk 0:00:53.3]} 42. Nd1 {[%clk 0:00:53.4]} 42... Rb3 {[%clk
0:00:52.3]} 43. Ne3 {[%clk 0:00:52.6]} 43... Rd3 {[%clk 0:00:51.8]} 44. Nf5
{[%clk 0:00:50.8]} 44... Rd5 {[%clk 0:00:48.9]} 45. g4 {[%clk 0:00:49.4]} 45...
h5 {[%clk 0:00:48.6]} 46. h3 {[%clk 0:00:49.4]} 46... hxg4 {[%clk 0:00:48.4]}
47. hxg4 {[%clk 0:00:49.9]} 47... Ra5 {[%clk 0:00:48.7]} 48. Kf3 {[%clk
0:00:48.9]} 48... Kg6 {[%clk 0:00:46.8]} 49. Re8 {[%clk 0:00:47.7]} 49... Kf7
{[%clk 0:00:46.1]} 50. Re3 {[%clk 0:00:46]} 50... Ra4 {[%clk 0:00:45.1]} 51. Re4
{[%clk 0:00:45.6]} 51... Ra3+ {[%clk 0:00:44.9]} 52. Re3 {[%clk 0:00:45.6]}
52... Ra7 {[%clk 0:00:45]} 53. Rb3 {[%clk 0:00:43.9]} 53... g6 {[%clk
0:00:44.2]} 54. Ng3 {[%clk 0:00:43.7]} 54... Bd6 {[%clk 0:00:41.6]} 55. Ne4
{[%clk 0:00:43.5]} 55... Be5 {[%clk 0:00:40.7]} 56. Nf2 {[%clk 0:00:43.5]} 56...
Ra4 {[%clk 0:00:38.5]} 57. Nd3 {[%clk 0:00:43.3]} 57... Rd4 {[%clk 0:00:36.1]}
58. Nxe5+ {[%clk 0:00:37.9]} 58... fxe5 {[%clk 0:00:35.4]} 59. Rb6 {[%clk
0:00:38.2]} 59... g5 {[%clk 0:00:34]} 60. Ra6 {[%clk 0:00:35.7]} 60... Rb4
{[%clk 0:00:33.7]} 61. Kg3 {[%clk 0:00:33]} 61... Rc4 {[%clk 0:00:33.7]} 62. Rb6
{[%clk 0:00:31.9]} 62... Rc3+ {[%clk 0:00:33.1]} 63. Kf2 {[%clk 0:00:31.4]}
63... e4 {[%clk 0:00:31.6]} 64. Rb5 {[%clk 0:00:31.5]} 64... Rf3+ {[%clk
0:00:29.5]} 65. Kg2 {[%clk 0:00:30.2]} 65... Kf6 {[%clk 0:00:29.7]} 66. Rb8
{[%clk 0:00:24.9]} 66... Ke5 {[%clk 0:00:26.9]} 0-1